fUST/lending_fUST_20240829
["ID","MTS","AMOUNT","RATE_DAILY","PERIOD"]
[336469666,1724861466396,-500.0,0.00020132,2]
[336469667,1724861466405,-500.0,0.00020132,2]
[336469668,1724861466414,-500.0,0.00020132,2]
[336469669,1724861466425,-500.0,0.00020132,2]
[336469670,1724861466435,-500.0,0.00020132,2]
[336469671,1724861466444,-500.0,0.00020132,2]
[336469672,1724861466454,-504.42028324,0.00020132,2]
[336469673,1724861466463,-502.82202814,0.00020132,2]
[336469674,1724861466473,-500.0,0.00020132,2]
[336469675,1724861466484,-500.0,0.00020132,2]
[336469676,1724861466493,-503.1577501,0.00020132,2]
[336469677,1724861466507,-500.0,0.00020132,2]
[336469678,1724861466517,-500.0,0.00020132,2]
[336469679,1724861466527,-500.0,0.00020132,2]
[336469680,1724861466537,-500.0,0.00020132,2]
[336469681,1724861466547,-500.0,0.00020132,2]
[336469682,1724861466556,-284.88373475,0.00020132,2]
[336469683,1724861466565,-500.0,0.00020132,2]
[336469684,1724861466574,-503.66708578,0.00020132,2]
[336469685,1724861466583,-1575.71,0.00020132,2]
[336469686,1724861466592,-649.45824325,0.00020132,2]
[336469687,1724861466601,-500.0,0.00020132,2]
[336469688,1724861466611,-500.0,0.00020132,2]
[336469689,1724861466620,-500.0,0.00020132,2]
[336469690,1724861466631,-500.0,0.00020132,2]
[336469691,1724861466641,-500.0,0.00020132,2]
[336469692,1724861466651,-500.0,0.00020132,2]
[336469693,1724861466659,-500.0,0.00020132,2]
[336469694,1724861466669,-500.0,0.00020132,2]
[336469695,1724861466679,-500.0,0.00020132,2]
[336469696,1724861466688,-500.0,0.00020132,2]
[336469697,1724861466697,-2441.06,0.00020132,2]
[336469698,1724861466706,-500.0,0.00020132,2]
[336469699,1724861466717,-500.0,0.00020132,2]
[336469700,1724861466727,-2445.65,0.00020132,2]
[336469701,1724861466736,-3605.34,0.00020132,2]
[336469702,1724861466746,-7804.01,0.00020132,2]
[336469703,1724861466758,-6989.42,0.00020132,2]
[336469704,1724861466769,-514.21811915,0.00020132,2]
[336469705,1724861466779,-3432.15,0.00020132,2]
[336469706,1724861466788,-500.0,0.00020132,2]
[336469707,1724861466798,-500.0,0.00020132,2]
[336469708,1724861466807,-500.0,0.00020132,2]
[336469709,1724861466817,-500.0,0.00020132,2]
[336469710,1724861466826,-500.0,0.00020132,2]
[336469711,1724861466835,-931.19,0.00020132,2]
[336469712,1724861466845,-500.0,0.00020132,2]
[336469713,1724861466855,-817.55,0.00020132,2]
[336469714,1724861466865,-500.0,0.00020132,2]
[336469715,1724861466874,-500.0,0.00020132,2]
[336469716,1724861466884,-503.35298542,0.00020132,2]
[336469717,1724861466893,-335.49880222,0.00020132,2]
[336469718,1724861466902,-500.0,0.00020132,2]
[336469719,1724861466912,-1715.86,0.00020132,2]
[336469720,1724861466923,-500.0,0.00020132,2]
[336469721,1724861466935,-2215.78,0.00020132,2]
[336469722,1724861466947,-991.34,0.00020132,2]
[336469723,1724861466956,-1028.21,0.00020132,2]
[336469724,1724861466966,-503.28069811,0.00020132,2]
[336469725,1724861466976,-1049.04,0.00020132,2]
[336469726,1724861466987,-500.0,0.00020132,2]
[336469727,1724861466996,-500.0,0.00020132,2]
[336469728,1724861467008,-500.0,0.00020132,2]
[336469729,1724861467017,-500.0,0.00020132,2]
[336469730,1724861467026,-500.0,0.00020132,2]
[336469731,1724861467036,-1574.19,0.00020132,2]
[336469732,1724861467046,-1419.19,0.00020132,2]
[336469733,1724861467056,-500.0,0.00020132,2]
[336469734,1724861467066,-500.0,0.00020132,2]
[336469735,1724861467078,-500.0,0.00020132,2]
[336469736,1724861467087,-1220.18,0.00020132,2]
[336469737,1724861467097,-3455.34,0.00020132,2]
[336469738,1724861467107,-500.0,0.00020132,2]
[336469739,1724861467116,-500.0,0.00020132,2]
[336469740,1724861467133,-500.0,0.00020132,2]
[336469741,1724861467144,-787.68,0.00020132,2]
[336469742,1724861467154,-1574.41,0.00020132,2]
[336469743,1724861467163,-500.0,0.00020132,2]
[336469744,1724861467175,-1161.17,0.00020132,2]
[336469745,1724861467184,-500.0,0.00020132,2]
[336469746,1724861467195,-1086.03,0.00020132,2]
[336469747,1724861467205,-326.94294238,0.00020132,2]
[336469748,1724861467217,-2104.49,0.00020132,2]
[336469749,1724861467227,-2050.11,0.00020132,2]
[336469750,1724861467237,-500.0,0.00020132,2]
[336469751,1724861467248,-500.0,0.00020132,2]
[336469752,1724861467260,-2447.77,0.00020132,2]
[336469753,1724861467269,-500.0,0.00020132,2]
[336469754,1724861467279,-502.94192009,0.00020132,2]
[336469755,1724861467288,-500.0,0.00020132,2]
[336469756,1724861467298,-1938.39,0.00020132,2]
[336469757,1724861467307,-500.0,0.00020132,2]
[336469758,1724861467317,-500.0,0.00020132,2]
[336469759,1724861467327,-500.0,0.00020132,2]
[336469760,1724861467336,-500.0,0.00020132,2]
[336469761,1724861467346,-500.0,0.00020132,2]
[336469762,1724861467356,-500.0,0.00020132,2]
[336469763,1724861467366,-3053.04,0.00020132,2]
[336469764,1724861467375,-500.0,0.00020132,2]
[336469765,1724861467385,-500.0,0.00020132,2]
[336469766,1724861467395,-500.0,0.00020132,2]
[336469767,1724861467406,-500.0,0.00020132,2]
[336469768,1724861467416,-500.0,0.00020132,2]
[336469769,1724861467428,-500.0,0.00020132,2]
[336469770,1724861467438,-500.0,0.00020132,2]
[336469771,1724861467449,-2059.73,0.00020132,2]
[336469772,1724861467460,-500.0,0.00020132,2]
[336469773,1724861467470,-500.0,0.00020132,2]
[336469774,1724861467480,-1762.74,0.00020132,2]
[336469775,1724861467490,-500.0,0.00020132,2]
[336469776,1724861467499,-500.0,0.00020132,2]
[336469777,1724861467512,-500.0,0.00020132,2]
[336469778,1724861467522,-500.0,0.00020132,2]
[336469779,1724861467532,-1881.79,0.00020133,2]
[336469780,1724861467542,-503.42618373,0.00020133,2]
[336469781,1724861467551,-4789.79,0.00020133,2]
[336469782,1724861467561,-2011.7,0.00020133,2]
[336469783,1724861467571,-1624.46,0.00020133,2]
[336469784,1724861467580,-500.0,0.00020133,2]
[336469785,1724861467591,-1132.43,0.00020133,2]
[336469786,1724861467600,-500.0,0.00020133,2]
[336469787,1724861467611,-151.0,0.00020173,2]
[336469788,1724861467621,-151.0,0.00020173,2]
[336469789,1724861467632,-500.0,0.00020173,2]
[336469790,1724861467642,-500.0,0.00020173,2]
[336469791,1724861467651,-500.0,0.00020173,2]
[336469792,1724861467662,-500.0,0.00020173,2]
[336469793,1724861467672,-500.0,0.00020173,2]
[336469794,1724861467683,-1847.91,0.00020173,2]
[336469795,1724861467699,-1019.59,0.00020173,2]
[336469796,1724861467709,-500.0,0.00020173,2]
[336469797,1724861467719,-500.0,0.00020173,2]
[336469798,1724861467729,-1247.82,0.00020173,2]
[336469799,1724861467740,-500.0,0.00020173,2]
[336469800,1724861467750,-1867.86,0.00020173,2]
[336469801,1724861467850,-2205.0,0.00020173,2]
[336469802,1724861467862,-500.0,0.00020173,2]
[336469803,1724861467872,-500.0,0.00020173,2]
[336469804,1724861467885,-1306.88,0.00020173,2]
[336469805,1724861467895,-500.0,0.00020173,2]
[336469806,1724861467906,-1564.33,0.00020173,2]
[336469807,1724861467917,-292.4119444,0.00020173,2]
[336469808,1724861467927,-500.66339323,0.00020173,2]
[336469809,1724861467938,-500.0,0.00020173,2]
[336469810,1724861467948,-500.0,0.00020173,2]
[336469811,1724861467958,-500.0,0.00020173,2]
[336469812,1724861467968,-500.0,0.00020173,2]
[336469813,1724861467978,-500.0,0.00020173,2]
[336469814,1724861467989,-500.0,0.00020173,2]
[336469815,1724861467999,-500.0,0.00020173,2]
[336469816,1724861468011,-1003.11,0.00020173,2]
[336469817,1724861468022,-481.74046279,0.00020173,2]
[336469818,1724861468031,-500.0,0.00020173,2]
[336469819,1724861468041,-500.0,0.00020173,2]
[336469820,1724861468052,-500.0,0.00020173,2]
[336469821,1724861468061,-500.0,0.00020173,2]
[336469822,1724861468072,-500.0,0.00020173,2]
[336469823,1724861468082,-500.0,0.00020173,2]
[336469824,1724861468093,-500.57006696,0.00020173,2]
[336469825,1724861468103,-500.0,0.00020173,2]
[336469826,1724861468113,-500.0,0.00020173,2]
[336469827,1724861468125,-500.0,0.00020173,2]
[336469828,1724861468139,-500.0,0.00020173,2]
[336469829,1724861468149,-500.17202417,0.00020173,2]
[336469830,1724861468160,-500.0,0.00020173,2]
[336469831,1724861468171,-500.0,0.00020173,2]
[336469832,1724861468180,-500.0,0.00020173,2]
[336469833,1724861468190,-500.0,0.00020173,2]
[336469834,1724861468199,-1403.9,0.00020173,2]
[336469835,1724861468209,-500.0,0.00020173,2]
[336469836,1724861468220,-500.0,0.00020173,2]
[336469837,1724861468230,-500.0,0.00020201,2]
[336469838,1724861468239,-500.0,0.00020201,2]
[336469839,1724861468250,-500.0,0.00020201,2]
[336469840,1724861468261,-500.0,0.00020201,2]
[336469841,1724861468270,-500.0,0.00020201,2]
[336469842,1724861468280,-573.24390998,0.00020201,2]
[336469843,1724861468289,-500.0,0.00020201,2]
[336469844,1724861468302,-1844.52,0.00020201,2]
[336469845,1724861468312,-500.0,0.00020201,2]
[336469846,1724861468322,-1669.64,0.00020201,2]
[336469847,1724861468333,-500.0,0.00020201,2]
[336469848,1724861468342,-500.0,0.00020201,2]
[336469849,1724861468353,-500.0,0.00020201,2]
[336469850,1724861468363,-500.0,0.00020201,2]
[336469851,1724861468374,-830.36,0.00020201,2]
[336469852,1724861468384,-500.0,0.00020201,2]
[336469853,1724861468395,-500.0,0.00020201,2]
[336469854,1724861468405,-855.87,0.00020201,2]
[336469855,1724861468415,-500.0,0.00020201,2]
[336469856,1724861468427,-500.0,0.00020201,2]
[336469857,1724861468438,-500.0,0.00020201,2]
[336469858,1724861468448,-518.36395015,0.00020201,2]
[336469859,1724861468458,-500.0,0.00020201,2]
[336469860,1724861468467,-502.4499899,0.00020201,2]
[336469861,1724861468478,-500.0,0.00020201,2]
[336469862,1724861468488,-500.0,0.00020201,2]
[336469863,1724861468499,-500.0,0.00020201,2]
[336469864,1724861468510,-1514.19,0.00020201,2]
[336469865,1724861468519,-500.0,0.00020201,2]
[336469866,1724861468528,-1583.58,0.00020201,2]
[336469867,1724861468538,-500.0,0.00020201,2]
[336469868,1724861468548,-500.0,0.00020201,2]
[336469869,1724861468558,-500.0,0.00020201,2]
[336469870,1724861468567,-500.0,0.00020201,2]
[336469871,1724861468577,-1033.16,0.00020201,2]
[336469872,1724861468586,-500.0,0.00020201,2]
[336469873,1724861468595,-500.0,0.00020201,2]
[336469874,1724861468605,-500.83879302,0.00020201,2]
[336469875,1724861468614,-501.23294664,0.00020201,2]
[336469876,1724861468623,-500.0,0.00020201,2]
[336469877,1724861468633,-500.0,0.00020201,2]
[336469878,1724861468642,-500.0,0.00020201,2]
[336469879,1724861468652,-500.0,0.00020201,2]
[336469880,1724861468661,-500.0,0.00020201,2]
[336469881,1724861468673,-500.0,0.00020201,2]
[336469882,1724861468685,-1188.18,0.00020201,2]
[336469883,1724861468695,-1477.27,0.00020201,2]
[336469884,1724861468706,-500.0,0.00020201,2]
[336469885,1724861468716,-500.0,0.00020201,2]
[336469886,1724861468726,-501.38432686,0.00020201,2]
[336469887,1724861468736,-500.0,0.00020201,2]
[336469888,1724861468746,-500.0,0.00020201,2]
[336469889,1724861468758,-500.0,0.00020201,2]
[336469890,1724861468768,-500.0,0.00020201,2]
[336469891,1724861468778,-500.0,0.00020201,2]
[336469892,1724861468789,-500.0,0.00020201,2]
[336469893,1724861468799,-500.0,0.00020201,2]
[336469894,1724861468810,-500.0,0.00020201,2]
[336469895,1724861468820,-500.0,0.00020201,2]
[336469896,1724861468831,-1202.37,0.00020201,2]
[336469897,1724861468840,-500.0,0.00020202,2]
[336469898,1724861468851,-500.0,0.00020202,2]
[336469899,1724861468862,-500.0,0.00020202,2]
[336469900,1724861468871,-500.0,0.00020202,2]
[336469901,1724861468880,-500.0,0.00020202,2]
[336469902,1724861468889,-500.0,0.00020202,2]
[336469903,1724861468899,-500.0,0.00020202,2]
[336469904,1724861468910,-500.0,0.00020202,2]
[336469905,1724861468921,-460.51634926,0.00020202,2]
[336469906,1724861468930,-500.0,0.00020202,2]
[336469907,1724861468940,-500.0,0.00020202,2]
[336469908,1724861468950,-500.0,0.00020202,2]
[336469909,1724861468961,-500.0,0.00020202,2]
[336469910,1724861468970,-500.0,0.00020202,2]
[336469911,1724861468979,-500.0,0.00020202,2]
[336469912,1724861468989,-500.038208,0.00020202,2]
[336469913,1724861468999,-593.05,0.00020202,2]
[336469914,1724861469012,-500.0,0.00020202,2]
[336469915,1724861469023,-500.0,0.00020202,2]
[336469916,1724861469032,-500.0,0.00020202,2]
[336469917,1724861469042,-500.0,0.00020202,2]
[336469918,1724861469053,-532.0133485,0.00020202,2]
[336469919,1724861469062,-500.0,0.00020202,2]
[336469920,1724861469072,-500.0,0.00020202,2]
[336469921,1724861469082,-500.0,0.00020202,2]
[336469922,1724861469092,-501.24786897,0.00020202,2]
[336469923,1724861469101,-500.0,0.00020202,2]
[336469924,1724861469110,-500.0,0.00020202,2]
[336469925,1724861469121,-315.74856915,0.00020202,2]
[336469926,1724861469135,-500.0,0.00020202,2]
[336469927,1724861469145,-500.0,0.00020202,2]
[336469928,1724861469155,-500.0,0.00020202,2]
[336469929,1724861469165,-605.58,0.00020202,2]
[336469930,1724861469176,-500.0,0.00020202,2]
[336469931,1724861469186,-500.0,0.00020202,2]
[336469932,1724861469196,-458.7429505,0.00020202,2]
[336469933,1724861469207,-500.0,0.00020202,2]
[336469934,1724861469216,-500.0,0.00020202,2]
[336469935,1724861469226,-500.0,0.00020202,2]
[336469936,1724861469236,-500.0,0.00020202,2]
[336469937,1724861469247,-500.0,0.00020202,2]
[336469938,1724861469261,-501.28214696,0.00020202,2]
[336469939,1724861469271,-500.0,0.00020202,2]
[336469940,1724861469281,-500.0,0.00020202,2]
[336469941,1724861469291,-500.0,0.00020202,2]
[336469942,1724861469300,-500.0,0.00020202,2]
[336469943,1724861469310,-500.0,0.00020202,2]
[336469944,1724861469319,-378.28816088,0.00020202,2]
[336469945,1724861469329,-823.28,0.00020202,2]
[336469946,1724861469341,-500.0,0.00020202,2]
[336469947,1724861469352,-500.0,0.00020202,2]
[336469948,1724861469363,-500.0,0.00020202,2]
[336469949,1724861469374,-500.0,0.00020202,2]
[336469950,1724861469385,-501.02,0.00020202,2]
[336469951,1724861469396,-500.0,0.00020202,2]
[336469952,1724861469406,-500.0,0.00020202,2]
[336469953,1724861469417,-500.0,0.00020202,2]
[336469954,1724861469428,-500.0,0.00020202,2]
[336469955,1724861469439,-500.0,0.00020202,2]
[336469956,1724861469449,-500.0,0.00020202,2]
[336469957,1724861469459,-500.0,0.00020202,2]
[336469958,1724861469469,-500.0,0.00020202,2]
[336469959,1724861469478,-500.0,0.00020202,2]
[336469960,1724861469488,-500.0,0.00020202,2]
[336469961,1724861469499,-1111.6,0.00020202,2]
[336469962,1724861469512,-500.0,0.00020202,2]
[336469963,1724861469521,-500.0,0.00020202,2]
[336469964,1724861469530,-1047.6,0.00020202,2]
[336469965,1724861469623,-500.0,0.00020202,2]
[336469966,1724861469633,-500.0,0.00020202,2]
[336469967,1724861469643,-500.0,0.00020202,2]
[336469968,1724861469653,-500.0,0.00020202,2]
[336469969,1724861469663,-500.0,0.00020202,2]
[336469970,1724861469674,-500.0,0.00020202,2]
[336469971,1724861469684,-519.52,0.00020202,2]
[336469972,1724861469693,-500.0,0.00020202,2]
[336469973,1724861469702,-500.0,0.00020202,2]
[336469974,1724861469712,-500.0,0.00020202,2]
[336469975,1724861469722,-500.0,0.00020202,2]
[336469976,1724861469731,-500.0,0.00020202,2]
[336469977,1724861469741,-500.0,0.00020202,2]
[336469978,1724861469751,-500.0,0.00020202,2]
[336469979,1724861469763,-500.0,0.00020202,2]
[336469980,1724861469774,-500.0,0.00020232,2]
[336469981,1724861469784,-151.0,0.00020263,2]
[336469982,1724861469794,-151.0,0.00020263,2]
[336469983,1724861469803,-500.0,0.00020263,2]
[336469984,1724861469813,-500.0,0.00020263,2]
[336469985,1724861469823,-500.0,0.00020263,2]
[336469986,1724861469833,-500.0,0.00020263,2]
[336469987,1724861469843,-500.0,0.00020263,2]
[336469988,1724861469853,-500.0,0.00020263,2]
[336469989,1724861469863,-500.0,0.00020263,2]
[336469990,1724861469872,-500.0,0.00020263,2]
[336469991,1724861469882,-500.0,0.00020263,2]
[336469992,1724861469891,-500.0,0.00020263,2]
[336469993,1724861469900,-500.0,0.00020263,2]
[336469994,1724861469910,-500.0,0.00020263,2]
[336469995,1724861469920,-580.47379428,0.00020263,2]
[336469996,1724861469930,-500.0,0.00020263,2]
[336469997,1724861469939,-500.0,0.00020263,2]
[336469998,1724861469948,-500.0,0.00020263,2]
[336469999,1724861469958,-500.0,0.00020263,2]
[336470000,1724861469968,-500.0,0.00020263,2]
[336470001,1724861469978,-503.03022032,0.00020263,2]
[336470002,1724861469987,-502.79669445,0.00020263,2]
[336470003,1724861469996,-500.0,0.00020263,2]
[336470004,1724861470008,-500.0,0.00020263,2]
[336470005,1724861470018,-500.0,0.00020263,2]
[336470006,1724861470027,-500.0,0.00020263,2]
[336470007,1724861470036,-501.8559628,0.00020263,2]
[336470008,1724861470046,-500.0,0.00020263,2]
[336470009,1724861470056,-463.158535,0.00020263,2]
[336470010,1724861470066,-500.0,0.00020263,2]
[336470011,1724861470075,-500.0,0.00020263,2]
[336470012,1724861470085,-500.0,0.00020263,2]
[336470013,1724861470094,-500.0,0.00020263,2]
[336470014,1724861470105,-975.97,0.00020263,2]
[336470015,1724861470114,-500.0,0.00020263,2]
[336470016,1724861470124,-500.0,0.00020263,2]
[336470017,1724861470137,-500.0,0.00020263,2]
[336470018,1724861470147,-500.0,0.00020263,2]
[336470019,1724861470156,-500.0,0.00020263,2]
[336470020,1724861470167,-500.0,0.00020263,2]
[336470021,1724861470178,-500.0,0.00020263,2]
[336470022,1724861470187,-500.0,0.00020263,2]
[336470023,1724861470196,-500.0,0.00020263,2]
[336470024,1724861470206,-474.42078293,0.00020263,2]
[336470025,1724861470218,-604.0,0.000203,2]
[336470026,1724861470229,-390.33975893,0.00020321,2]
[336470027,1724861470239,-1000.0,0.00020321,2]
[336470028,1724861470250,-501.29769215,0.00020338,2]
[336470029,1724861470262,-151.0,0.00020357,2]
[336470030,1724861470271,-151.0,0.00020357,2]
[336470031,1724861470282,-500.0,0.00020358,2]
[336470032,1724861470291,-151.0,0.00020367,2]
[336470033,1724861470302,-151.0,0.00020367,2]
[336470034,1724861470312,-151.0,0.00020367,2]
[336470035,1724861470321,-87323.11723315,0.00020377,2]
[336470036,1724861470331,-151.0,0.00020377,2]
[336470037,1724861470340,-151.0,0.00020377,2]
[336470038,1724861470350,-151.0,0.00020377,2]
[336470039,1724861470359,-151.0,0.00020377,2]
[336470040,1724861470369,-151.0,0.00020377,2]
[336470041,1724861470379,-151.0,0.00020377,2]
[336470042,1724861470389,-151.0,0.00020377,2]
[336470043,1724861470399,-151.0,0.00020377,2]
[336470044,1724861470409,-151.0,0.00020377,2]
[336470045,1724861470419,-500.0,0.00020383,2]
[336470046,1724861470431,-500.0,0.00020394,2]
[336470047,1724861470440,-500.0,0.00020394,2]
[336470048,1724861470450,-500.0,0.00020395,2]
[336470049,1724861470460,-4995.28,0.00020395,2]
[336470050,1724861470469,-1834.9,0.00020395,2]
[336470051,1724861470479,-1963.25,0.00020395,2]
[336470052,1724861470488,-2904.94,0.00020395,2]
[336470053,1724861470498,-7393.53,0.00020395,2]
[336470054,1724861470510,-788.02,0.00020395,2]
[336470055,1724861470520,-7405.77,0.00020395,2]
[336470056,1724861470529,-1909.51,0.00020395,2]
[336470057,1724861470539,-2303.49,0.00020395,2]
[336470058,1724861470548,-500.0,0.00020395,2]
[336470059,1724861470558,-2897.7,0.00020395,2]
[336470060,1724861470568,-1046.34,0.00020395,2]
[336470061,1724861470578,-1283.62,0.00020395,2]
[336470062,1724861470588,-1871.86,0.00020395,2]
[336470063,1724861470598,-500.0,0.00020395,2]
[336470064,1724861470607,-7433.18,0.00020405,2]
[336470065,1724861470617,-5212.58,0.00020405,2]
[336470066,1724861470627,-500.0,0.00020405,2]
[336470067,1724861470637,-500.0,0.00020405,2]
[336470068,1724861470647,-1640.83,0.00020405,2]
[336470069,1724861470656,-4365.01,0.00020405,2]
[336470070,1724861470667,-12675.43,0.00020405,2]
[336470071,1724861470677,-3008.32,0.00020405,2]
[336470072,1724861470687,-3478.62,0.00020405,2]
[336470073,1724861470697,-500.0,0.00020406,2]
[336470074,1724861470707,-500.0,0.00020406,2]
[336470075,1724861470716,-500.0,0.00020406,2]
[336470076,1724861470726,-500.0,0.00020406,2]
[336470077,1724861470736,-325.45159217,0.00020406,2]
[336470078,1724861470746,-500.0,0.00020406,2]
[336470079,1724861470757,-500.0,0.00020406,2]
[336470080,1724861470768,-500.0,0.00020406,2]
[336470081,1724861470780,-500.71122413,0.00020406,2]
[336470082,1724861470791,-500.0,0.00020406,2]
[336470083,1724861470801,-500.0,0.00020406,2]
[336470084,1724861470811,-500.0,0.00020406,2]
[336470085,1724861470820,-593.09849055,0.00020406,2]
[336470086,1724861470831,-500.0,0.00020406,2]
[336470087,1724861470841,-503.07377855,0.00020406,2]
[336470088,1724861470851,-500.0,0.00020406,2]
[336470089,1724861470861,-500.0,0.00020406,2]
[336470090,1724861470871,-454.85644812,0.00020406,2]
[336470091,1724861470880,-500.0,0.00020406,2]
[336470092,1724861470890,-891.13,0.00020406,2]
[336470093,1724861470900,-1064.58,0.00020406,2]
[336470094,1724861470910,-500.0,0.00020406,2]
[336470095,1724861470920,-330.37,0.00020406,2]
[336470096,1724861470929,-500.0,0.00020406,2]
[336470097,1724861470940,-502.03,0.00020406,2]
[336470098,1724861470951,-596.87580982,0.00020406,2]
[336470099,1724861470960,-963.81,0.00020406,2]
[336470100,1724861470970,-500.0,0.00020406,2]
[336470101,1724861470980,-500.0,0.00020406,2]
[336470102,1724861470990,-500.0,0.00020406,2]
[336470103,1724861471000,-500.0,0.00020406,2]
[336470104,1724861471013,-500.0,0.00020406,2]
[336470105,1724861471023,-500.0,0.00020406,2]
[336470106,1724861471033,-500.0,0.00020406,2]
[336470107,1724861471042,-500.0,0.00020406,2]
[336470108,1724861471052,-500.0,0.00020406,2]
[336470109,1724861471062,-500.0,0.00020406,2]
[336470110,1724861471072,-500.0,0.00020406,2]
[336470111,1724861471082,-500.0,0.00020406,2]
[336470112,1724861471092,-500.0,0.00020406,2]
[336470113,1724861471101,-502.00061401,0.00020406,2]
[336470114,1724861471112,-500.0,0.00020406,2]
[336470115,1724861471122,-500.0,0.00020406,2]
[336470116,1724861471212,-500.0,0.00020406,2]
[336470117,1724861471223,-1575.71,0.00020406,2]
[336470118,1724861471232,-500.0,0.00020406,2]
[336470119,1724861471241,-503.23028337,0.00020406,2]
[336470120,1724861471250,-500.0,0.00020406,2]
[336470121,1724861471262,-504.53428271,0.00020406,2]
[336470122,1724861471272,-500.0,0.00020406,2]
[336470123,1724861471282,-500.0,0.00020406,2]
[336470124,1724861471293,-500.0,0.00020406,2]
[336470125,1724861471304,-502.979742,0.00020406,2]
[336470126,1724861471315,-500.0,0.00020406,2]
[336470127,1724861471325,-2441.06,0.00020406,2]
[336470128,1724861471335,-500.0,0.00020406,2]
[336470129,1724861471345,-500.0,0.00020406,2]
[336470130,1724861471354,-2445.65,0.00020406,2]
[336470131,1724861471364,-3605.34,0.00020406,2]
[336470132,1724861471374,-7804.01,0.00020406,2]
[336470133,1724861471384,-6989.42,0.00020406,2]
[336470134,1724861471394,-3432.15,0.00020406,2]
[336470135,1724861471404,-500.0,0.00020406,2]
[336470136,1724861471414,-500.0,0.00020406,2]
[336470137,1724861471428,-500.0,0.00020406,2]
[336470138,1724861471438,-500.0,0.00020406,2]
[336470139,1724861471448,-931.19,0.00020406,2]
[336470140,1724861471457,-500.0,0.00020406,2]
[336470141,1724861471467,-817.55,0.00020406,2]
[336470142,1724861471476,-278.70042497,0.00020406,2]
[336470143,1724861471487,-500.0,0.00020406,2]
[336470144,1724861471496,-500.0,0.00020406,2]
[336470145,1724861471507,-1715.86,0.00020406,2]
[336470146,1724861471517,-500.0,0.00020406,2]
[336470147,1724861471527,-2215.78,0.00020406,2]
[336470148,1724861471537,-991.34,0.00020406,2]
[336470149,1724861471548,-1028.21,0.00020406,2]
[336470150,1724861471557,-1049.04,0.00020406,2]
[336470151,1724861471567,-500.0,0.00020406,2]
[336470152,1724861471577,-500.0,0.00020406,2]
[336470153,1724861471587,-500.0,0.00020406,2]
[336470154,1724861471597,-500.0,0.00020406,2]
[336470155,1724861471607,-501.31729394,0.00020406,2]
[336470156,1724861471616,-1574.19,0.00020406,2]
[336470157,1724861471627,-1419.19,0.00020406,2]
[336470158,1724861471637,-500.0,0.00020406,2]
[336470159,1724861471647,-500.0,0.00020406,2]
[336470160,1724861471657,-500.0,0.00020406,2]
[336470161,1724861471668,-1220.18,0.00020406,2]
[336470162,1724861471678,-3455.34,0.00020406,2]
[336470163,1724861471689,-500.0,0.00020406,2]
[336470164,1724861471698,-403.05770211,0.00020406,2]
[336470165,1724861471708,-455.24407392,0.00020406,2]